Workbook

Sheet μουσική
A1: Α/Α | B1: ΕΤΑΙΡΕΙΑ ΑΜΚΕ | C1: ΤΙΤΛΟΣ | D1: Α.Μ. | E1: ΚΑΤΗΓΟΡΙΑ ΧΡΗΜΑΤΟΔΟΤΗΣΗΣ | H1: ΧΩΡΟΙ
E2: 15,000.00 € | F2: 30,000.00 € | G2: 60,000.00 €
A3: 1 | B3: ERGON ENSEMBLE - ΑΣΤΙΚΗ ΜΗ ΚΕΡΔΟΣΚΟΠΙΚΗ ΕΤΑΙΡΙΑ | C3: "ΛΟΓΟΣ 132" | D3: 191 | F3: 30,000.00 € | H3: ΑΡΧΑΙΟ ΘΕΑΤΡΟ ΜΕΣΣΗΝΗΣ
A4: 2 | B4: ΕΝ ΧΟΡΔΑΙΣ | C4: Το Βυζάντιο μετά το Βυζάντιο Η βυζαντινή κληρονομιά στη σύγχρονη μουσική και λογοτεχνική δημιουργία | D4: 237 | F4: 30,000.00 € | H4: ΡΟΤΟΝΤΑ
A5: 3 | B5: Androidus Project Tank,ΑΣΤΙΚΗ ΜΗ ΚΕΡΔΟΣΚΟΠΙΚΗ ΕΤΑΙΡΕΙΑ ΚΑΛΛΙΕΡΓΕΙΑ, ΔΙΑΔΟΣΗ, ΠΡΟΩΘΗΣΗ ΚΑΙΝΟΤΟΜΩΝ ΙΔΕΩΝ ΚΑΙ ΚΑΛΩΝ ΤΕΧΝΩΝ | C5: ΤΟ ΠΕΡΑΜΑΤΙΣΜΑ | D5: 3596 | F5: 30,000.00 € | H5: ΣΠΗΛΑΙΟ ΙΔΑΙΟΥ ΑΝΔΡΟΥ
A6: 4 | B6: ΟΜΑΖ ΑΣΤΙΚΗ ΜΗ ΚΕΡΔΟΣΚΟΠΙΚΗ ΕΤΑΙΡΕΙΑ | C6: Παρόλες - Πώς τα τραγούδια του χθες συνομιλούν με το σήμερα; | D6: 4124 | E6: 15,000.00 € | H6: ΚΟΝΑΚΙ ΠΡΟΔΡΟΜΟΥ ΣΤΗΝ ΚΑΡΔΙΤΣΑ
A7: 5 | B7: ΤΕΧΝΕΣ ΣΤΟ ΜΙΞΕΡ - ΠΑΡΑΣΤΑΤΙΚΕΣ ΤΕΧΝΕΣ ΑΣΤΙΚΗ ΜΗ ΚΕΡΔΟΣΚΟΠΙΚΗ ΕΤΑΙΡΕΙΑ | C7: "Μεταμορφώσεων το ανάγνωσμα" | D7: 4310 | F7: 30,000.00 € | H7: ΑΡΧΑΙΟΛΟΓΙΚΟΣ ΧΩΡΟΣ ΑΠΤΕΡΑΣ
A8: 6 | B8: ΜΟΥΣΙΚΟ ΦΕΣΤΙΒΑΛ ΧΙΟΥ ΑΣΤΙΚΗ ΜΗ ΚΕΡΔΟΣΚΟΠΙΚΗ ΕΤΑΙΡΙΑ | C8: ΧΙΟΣ, ALLER/RETOUR | D8: 4337 | F8: 30,000.00 € | H8: ΟΘΩΜΑΝΙΚΑ ΛΟΥΤΡΑ ΚΑΣΤΡΟΥ ΧΙΟΥ
A9: 7 | B9: Τζαζ Δημοκρατία - ΑΜΚΕ | C9: "Πατέρας & Γιός: Διάλογος μέσα από την Τζαζ - Το Βάρος της Κληρονομιάς" | D9: 5349 | E9: 15,000.00 € | H9: ΡΩΜΑΪΚΗ ΑΓΟΡΑ ΑΡΧ/ΚΟΥ ΧΩΡΟΥ ΔΕΛΦΩΝ
A10: 8 | B10: ΔΗΜΙΟΥΡΓΙΚΟ ΜΟΥΣΙΚΟ ΝΗΣΙ ΑΣΤΙΚΗ ΜΗ ΚΕΡΔΟΣΚΟΠΙΚΗ ΕΤΑΙΡΕΙΑ | C10: "Δεν είναι εποχή για ποίηση…" | D10: 5363 | F10: 30,000.00 € | H10: ΜΟΝΗ ΚΟΙΜΗΣΕΩΣ ΘΕΟΤΟΚΟΥ ΔΕΣΚΑΤΗΣ ΓΡΕΒΕΝΩΝ
A11: 9 | B11: Κίτρον Α.Μ.Κ.Ε. | C11: ΜΝΗΜΗΣ ΠΕΡΑΣΜΑΤΑ | D11: 6979 | F11: 30,000.00 € | H11: ΑΡΧΟΝΤΙΚΟ ΤΣΙΑΤΣΑΠΑ ΚΑΣΤΟΡΙΑ
A12: 10 | B12: «THEAMA PRODUCTION» Αστική μη κερδοσκοπική εταιρεία | C12: "Έλα και τράβα τη σκεπή, να φύγω να πετάξω..." | D12: 8714 | F12: 30,000.00 € | H12: ΚΕΡΚΥΡΑ ΠΑΛΑΙΟ ΦΡΟΥΡΙΟ
A13: 11 | B13: OLIPOLI ΑΣΤΙΚΗ ΜΗ ΚΕΡΔΟΣΚΟΠΙΚΗ ΕΤΑΙΡΕΙΑ | C13: Πόσος κόσμος χωράει στο μπαλκόνι μου | D13: 17998 | E13: 15,000.00 € | H13: ΙΣΛΑΧΑΝΕ
A14: 12 | B14: ΔΙΟΔΟΣ ΠΟΛΙΤΙΣΤΙΚΗ ΚΙΝΗΣΗ ΑΣΤΙΚΗ ΜΗ ΚΕΡΔΟΣΚΟΠΙΚΗ ΕΤΑΙΡΕΙΑ | C14: ΤΡΑΓΟΥΔΙ ΑΧΕΙΡΟΠΟΙΗΤΟ Ο κυρ Αλέξανδρος Παπαδιαμάντης ανάμεσα μας | D14: 18023 | F14: 30,000.00 € | H14: ΑΘΑΝΑΣΑΚΕΙΟ ΑΡΧΑΙΟΛΟΓΙΚΟ ΜΟΥΣΕΙΟ ΒΟΛΟΥ
A15: 13 | B15: Piandaemonium Αστική Μη Κερδοσκοπική Εταιρεία | C15: Το Άξιον Εστί | D15: 20800 | G15: 60,000.00 € | H15: ΘΕΑΤΡΟ ΑΡΧ/ΚΟΥ ΧΩΡΟΥ ΔΙΟΥ
A16: 14 | B16: SYRIX PRODUCTIONS ΑΣΤΙΚΗ ΜΗ ΚΕΡΔΟΣΚΟΠΙΚΗ ΕΤΑΙΡΙΑ | C16: Το Κάστρο της Μυτιλήνης Χτίζοντας πάνω στο παρελθόν | D16: 20805 | F16: 30,000.00 € | H16: ΚΑΣΤΡΟ ΜΥΤΙΛΗΝΗΣ
A17: 15 | B17: Ομάδα Μουσικού Θεάτρου Ραφή | C17: ΒΡΥΚΟΛΑΞ ΕΝ ΚΑΒΕΙΡΩ | D17: 33513 | F17: 30,000.00 € | H17: ΚΑΒΕΙΡΙΟ ΛΗΜΝΟΥ
A18: 16 | B18: ALCEDO-ΑΛΚΕΝΤΟ | C18: Τα λουλούδια που βλέπουν | D18: 51797 | E18: 15,000.00 € | H18: ΓΥΝΑΙΚΟΚΑΣΤΡΟ ΚΙΛΚΙΣ
A19: 17 | B19: Lάz - Las Α.Μ.Κ.Ε. | C19: Ιώ: στο μικρό βουνί των μεγάλων θεών | D19: 52885 | F19: 30,000.00 € | H19: ΣΑΜΟΘΡΑΚΗ. ΙΕΡΟ ΜΕΓΑΛΩΝ ΘΕΩΝ Ή ΜΟΥΣΕΙΟ
A20: 18 | B20: ΚΑΠΠΑ ΤΕΣΣΕΡΑ ΑΣΤΙΚΗ ΜΗ ΚΕΡΔΟΣΚΟΠΙΚΗ ΕΤΑΙΡΕΙΑ | C20: ΜΟΛΙΣ ΚΟΙΜΗΘΕΙ ΤΟ ΚΥΜΑ | D20: 66472 | E20: 15,000.00 € | H20: ΚΑΣΤΡΟ ΙΩΑΝΝΙΝΩΝ. ΙΤΣ ΚΑΛΕ
A21: 19 | B21: ΖΑΛΟΥ ΑΣΤΙΚΗ ΜΗ ΚΕΡΔΟΣΚΟΠΙΚΗ ΕΤΑΙΡΕΙΑ | C21: IN BETWEEN ΕΝ-ΔΙΑΜΕΣΩΣ | D21: 67319 | E21: 15,000.00 € | H21: ΑΡΧ/ΚΟΣ ΧΩΡΟΣ ΓΟΡΤΥΝΑΣ
A22: 20 | B22: ARTRACK ΣΤΙΒΟΣ ΤΕΧΝΗΣ Α.Μ.Κ.Ε. | C22: Αντίλαλοι του Χρόνου | D22: 67459 | F22: 30,000.00 € | H22: ΑΡΧΑΙΟ ΘΕΑΤΡΟ ΔΩΔΩΝΗΣ
A23: 21 | B23: ΡΥΜΗ ΑΜΚΕ | C23: Η μάνα μου η χήνα: Ένα σύγχρονο μουσικό παραμύθι | D23: 67486 | E23: 15,000.00 € | H23: ΑΡΧΑΙΟΛΟΓΙΚΟ ΜΟΥΣΕΙΟ ΠΕΛΛΑΣ
A24: 22 | B24: PRO4arts Αστική Μη Κερδοσκοπική Εταιρεία | C24: Ove vai? Konte Nano, Ove vai? | D24: 67630 | F24: 30,000.00 € | H24: ΑΚΡΟΝΑΥΠΛΙΑ. ΚΑΣΤΡΟ ΠΑΛΑΜΗΔΙΟΥ
A25: 23 | B25: Α.Μ.Κ.Ε. ΔΙΕΘΝΗΣ ΔΡΑΣΗ | C25: Η ΠΟΙΗΣΗ ΣΤΗ ΜΟΥΣΙΚΗ - Κρυμμένη Ποίηση | Μυστική Συναυλία | D25: 68157 | F25: 30,000.00 € | H25: ΦΟΡΤΕΤΣΑ ΡΕΘΥΜΝΟ
A26: 24 | B26: POLYTONALITY - ΑΣΤΙΚΗ ΜΗ ΚΕΡΔΟΣΚΟΠΙΚΗ ΕΤΑΙΡΕΙΑ | C26: Μοτίβα του τραύματος - Τέχνες και Ιστορία | D26: 68172 | E26: 15,000.00 € | H26: ΑΡΧΑΙΟΛΟΓΙΚΟΣ ΧΩΡΟΣ ΠΛΕΥΡΩΝΑΣ
E29: =SUM(E6,E9,E13,E18,E20,E21,E23,E26) -> 120,000.00 € | F29: =SUM(F3,F4,F5,F7,F8,F10,F11,F12,F14,F16,F17,F19,F22,F24,F25) -> 450,000.00 € | G29: =SUM(G15) -> 60,000.00 € | H29: =SUM(E29:G29) -> 630,000.00 €

Sheet θέατρο
A1: Α/Α | B1: ΕΤΑΙΡΕΙΑ ΑΜΚΕ | C1: ΤΙΤΛΟΣ | D1: Α.Μ. | E1: ΚΑΤΗΓΟΡΙΑ ΧΡΗΜΑΤΟΔΟΤΗΣΗΣ | H1: ΧΩΡΟΣ
E2: 15,000.00 € | F2: 30,000.00 € | G2: 60,000.00 €
A3: 1 | B3: ΑΝΟΙΧΤΗ ΠΟΡΤΑ ΑΣΤΙΚΗ ΜΗ ΚΕΡΔΟΣΚΟΠΙΚΗ ΕΤΑΙΡΙΑ ΓΙΑ ΤΗΝ ΤΕΧΝΗ ΤΟΥ ΘΕΑΤΡΟΥ | C3: "Πάντων Μίμησις" | D3: 453 | G3: 60,000.00 € | H3: ΑΓΙΟΣ ΑΧΙΛΛΕΙΟΣ ΠΡΕΣΠΩΝ
A4: 2 | B4: ΚΑΛΛΙΤΕΧΝΙΚΗ ΕΤΑΙΡΕΙΑ ΑΡΓΩ | C4: ο αρχαιολόγος | D4: 905 | F4: 30,000.00 € | H4: ΑΡΧΑΙΟ ΘΕΑΤΡΟ ΜΑΡΩΝΕΙΑΣ
A5: 3 | B5: ART SYNDICATE-ΕΤΑΙΡΕΙΑ ΠΟΛΙΤΙΣΤΙΚΗΣ ΔΡΑΣΤΗΡΙΟΤΗΤΑΣ | C5: τσελεμεντές | D5: 1320 | E5: 15,000.00 € | H5: ΑΡΧΑΙΟΛΟΓΙΚΟ ΜΟΥΣΕΙΟ ΑΡΕΘΟΥΣΑΣ ΧΑΛΚΙΔΑ
A6: 4 | B6: ΕΤΑΙΡΕΙΑ ΘΕΑΤΡΟΥ | C6: Ουρανός απ΄άλλους τόπους Ρόδα στο μαντίλι | D6: 1335 | E6: 15,000.00 € | H6: ΑΡΧΑΙΟΛΟΓΙΚΟ ΜΟΥΣΕΙΟ ΑΡΤΑΣ
A7: 5 | B7: ΑΣΤΙΚΗ ΜΗ ΚΕΡΔΟΣΚΟΠΙΚΗ ΕΤΑΙΡΕΙΑ ΣΥΓΧΡΟΝΩΝ ΔΗΜΙΟΥΡΓΙΚΩΝ ΠΑΡΑΣΤΑΤΙΚΩΝ ΤΕΧΝΩΝ ΜΟΥΣΙΚΩΝ ΚΑΙ ΕΙΚΑΣΤΙΚΩΝ ΕΡΓΩΝ | C7: "Ο μαγεμένος βοσκός του Σπυρίδωνος Περεσιάδη" | D7: 1538 | G7: 60,000.00 € | H7: ΑΡΧΑΙΟ ΘΕΑΤΡΟ ΣΑΜΟΥ (ΞΥΛΙΝΟ)
A8: 6 | B8: ΑΣΤΙΚΗ ΜΗ ΚΕΡΔΟΣΚΟΠΙΚΗ ΕΤΑΙΡΙΑ ΘΕΑΤΡΙΚΗΣ ΤΕΧΝΗΣ ΔΡOMΟΣ ΜΕ ΔΕΝΤΡΑ | C8: ΤΑ ΠΑΛΙΟΚΟΡΙΤΣΑ (Κάτσε καλά μη γίνεις τραγούδι) | D8: 1570 | E8: 15,000.00 € | H8: ΚΑΣΤΡΟ ΛΑΜΙΑΣ
A9: 7 | B9: ΠΕΙΡΑΜΑΤΙΚΗ ΘΕΑΤΡΙΚΗ ΟΜΑΔΑ-ΑΣΤΙΚΗ ΜΗ ΚΕΡΔΟΣΚΟΠΙΚΗ ΕΤΑΙΡΕΙΑ | C9: θα έρθουν καλύτερες μέρες | D9: 1978 | F9: 30,000.00 € | H9: ΚΑΣΤΡΟ ΑΓΙΟΥ ΓΕΩΡΓΙΟΥ ΚΕΦΑΛΛΟΝΙΑ
A10: 8 | B10: 4 FRONTAL | C10: Ο Μουσακάς | D10: 2034 | F10: 30,000.00 € | H10: ΜΕΤΟΧΙΑΚΟ ΣΥΓΚΡΟΤΗΜΑ ΝΕΩΝ ΦΛΟΓΗΤΩΝ
A11: 9 | B11: ΕΤΑΙΡEΙΑ ΘΕΑΤΡΟΥ XAΠΙ ΕΝΤ | C11: Το δίκαιο | D11: 2043 | G11: 60,000.00 € | H11: ΑΡΧΑΙΟ ΘΕΑΤΡΟ ΜΗΛΟΥ
A12: 10 | B12: ΤΕΧΝΗΣ ΟΝΕΙΡΑ | C12: "Κοινός Λόγος" | D12: 3588 | E12: 15,000.00 € | H12: ΑΡΧΑΙΟ ΘΕΑΤΡΟ ΟΡΧΟΜΕΝΟΥ ΑΡΚΑΔΙΑΣ
A13: 11 | B13: plays2place | C13: "ΑΝΟΛΟΚΛΗΡΩΤΑ ΠΟΙΗΜΑΤΑ" ("POEMES INACHEVES") (έχει τόνους) | D13: 3966 | E13: 15,000.00 € | H13: ΕΠΤΑΠΥΡΓΙΟ
A14: 12 | B14: ΔΙΑΣΠΟΡΑ | C14: Τα Κορίτσια της Εξόδου | D14: 4083 | F14: 30,000.00 € | H14: ΞΕΝΟΚΡΑΤΕΙΟ ΑΡΧ/ΚΟ ΜΟΥΣΕΙΟ ΙΕΡΑΣ ΠΟΛΕΩΣ ΜΕΣΟΛΛΟΓΙΟΥ
A15: 13 | B15: ΟΜΟΤΕΧΝΟΝ ΑΣΤΙΚΗ ΜΗ ΚΕΡΔΟΣΚΟΠΙΚΗ ΕΤΑΙΡΕΙΑ | C15: "Οι απολογίες του Σωκράτη" | D15: 12285 | F15: 30,000.00 € | H15: ΑΡΧΑΙΟΛΟΓΙΚΟ ΜΟΥΣΕΙΟ ΑΙΑΝΗΣ ΚΟΖΑΝΗΣ
A16: 14 | B16: ΕΤΑΙΡΕΙΑ ΘΕΑΤΡΟΥ ΑΝΤΙΡΡΗΣΗ ΑΣΤΙΚΗ ΜΗ ΚΕΡΔΟΣΚΟΠΙΚΗ ΕΤΑΙΡΕΙΑ | C16: Δημοπρασίες Φιλοσόφων | D16: 14602 | F16: 30,000.00 € | H16: ΡΩΜΑΪΚΟ ΩΔΕΙΟ ΝΙΚΟΠΟΛΗΣ
A17: 15 | B17: Πολιτιστική Εταιρεία Intravenous Αστική Εταιρεία | C17: Μήδεια/Έξοδος: ό,τι αγάπησα με σύντριψε στον ήλιο | D17: 14610 | E17: 15,000.00 € | H17: ΗΡΑΙΟ ΠΕΡΑΧΩΡΑΣ
A18: 16 | B18: ΚΡΑΜΑ ΑΣΤΙΚΗ ΜΗ ΚΕΡΔΟΣΚΟΠΙΚΗ ΕΤΑΙΡΕΙΑ | C18: Α.Ι.νιγμα | D18: 17969 | E18: 15,000.00 € | H18: ΑΡΧΑΙΟ ΘΕΑΤΡΟ ΑΡΧΑΙΑΣ ΗΛΙΔΑΣ
A19: 17 | B19: EXPERIMENTA Art Company ΑΣΤΙΚΗ ΜΗ ΚΕΡΔΟΣΚΟΠΙΚΗ ΕΤΑΙΡΕΙΑ | C19: ΠΕΡΣΕΣ_ ΤΟ ΜΟΙΡΟΛΟΪ ΤΩΝ ΧΑΜΕΝΩΝ | D19: 66483 | F19: 30,000.00 € | H19: ΑΡΧΑΙΟ ΘΕΑΤΡΟ ΦΙΛΙΠΠΩΝ ΚΑΒΑΛΑΣ
A20: 18 | B20: ArtCore Α.Μ.Κ.Ε. | C20: Επιστροφή στο μέλλον | D20: 66537 | E20: 15,000.00 € | H20: ΝΕΚΡΟΜΑΝΤΕΙΟ ΑΧΕΡΟΝΤΑ
A21: 19 | B21: Διεθνές Κέντρο Επιστημών,Πολιτισμού και Εκπαίδευσης ΟμήΓυρη | C21: Οι ρίζες της πορτοκαλιάς – Ιστορίες που επιστρέφουν | D21: 66825 | F21: 30,000.00 € | H21: ΑΡΧΑΙΟΛΟΓΙΚΟ ΜΟΥΣΕΙΟ ΗΡΑΚΛΕΙΟΥ
A22: 20 | B22: ΔΕΚΑΕΦΤΑ ΤΡΙΤΑ Αστική Μη Κερδοσκοπική Εταιρεία | C22: voskos | D22: 67523 | E22: 15,000.00 € | H22: ΜΟΥΣΕΙΟ ΒΥΖΑΝΤΙΝΟΥ ΠΟΛΙΤΙΣΜΟΥ ΘΕΣΣΑΛΟΝΙΚΗΣ
A23: 21 | B23: SUBSTANTIA ΑΣΤΙΚΗ ΜΗ ΚΕΡΔΟΣΚΟΠΙΚΗ ΕΤΑΙΡΕΙΑ | C23: Τάμα | D23: 68204 | E23: 15,000.00 € | H23: ΑΡΧΑΙΟΛΟΓΙΚΟΣ ΧΩΡΟΣ ΚΟΡΙΝΘΟΥ
E25: =SUM(E5,E6,E8,E12,E13,E17,E18,E20,E22,E23) -> 150,000.00 € | F25: =SUM(F9,F10,F14,F16,F19,F21,F4,F15) -> 240,000.00 € | G25: =SUM(G3,G7,G11) -> 180,000.00 € | H25: =SUM(E25:G25) -> 570,000.00 €

Sheet εικαστικά
A1: Α/Α | C1: ΕΤΑΙΡΕΙΑ ΑΜΚΕ | D1: ΤΙΤΛΟΣ | E1: Α.Μ. | F1: ΚΑΤΗΓΟΡΙΑ ΧΡΗΜΑΤΟΔΟΤΗΣΗΣ | I1: ΧΩΡΟΣ
F2: 15,000.00 € | G2: 30,000.00 € | H2: 60,000.00 €
A3: 1 | B3: 194 | C3: 3 137 | D3: Η ΜΝΗΜΗ ΤΟΥ ΝΕΡΟΥ: ΕΚΤΡΟΠΗ | E3: 4789 | G3: 30,000.00 € | I3: ΝΕΩΡΙΑ ΑΡΧΑΙΟΛΟΓΙΚΟΥ ΧΩΡΟΥ ΟΙΝΙΑΔΩΝ ΑΙΤΩΛΟΑΚΑΡΝΑΝΙΑΣ
A4: 2 | B4: 203 | C4: ΘΕΣΙΣ ΑΣΤΙΚΗ ΜΗ ΚΕΡΔΟΣΚΟΠΙΚΗ ΕΤΑΙΡΕΙΑ | D4: ΜΗΤΕΡΑ ΑΡΑΧΝΗ | E4: 5316 | G4: 30,000.00 € | I4: ΑΡΧΑ/ΚΟ ΜΟΥΣΕΙΟ ΘΕΣΣΑΛΟΝΙΚΗΣ
A5: 3 | B5: 206 | C5: Κέντρο Μελέτης και Προστασίας της Πολιτιστικής και Φυσικής Κληρονομιάς στο Αιγαίο-Εικονικό Μουσείο Τήνου | D5: ΣΤΑ ΒΗΜΑΤΑ ΤΟΥΣ… 127 ΧΡΟΝΙΑ ΜΕΤΑ | E5: 5347 | G5: 30,000.00 € | I5: ΣΧΟΛΗ ΟΥΡΣΟΥΛΙΝΩΝ ΤΗΝΟΥ
A6: 4 | B6: 242 | C6: ΠΕΙΡΑΜΑΤΙΚΟ ΕΡΓΑΣΤΗΡΙ ΜΕΛΕΤΗΣ ΚΑΙ ΕΡΕΥΝΑΣ ΓΙΑ ΤΗΝ ΠΟΛΙΤΙΚΗ ΤΗΝ ΟΙΚΟΝΟΜΙΑ ΚΑΙ ΤΟΝ ΠΟΛΙΤΙΣΜΟ | D6: "Είναι γραφτό; Μακτούμπ" | E6: 6554 | G6: 30,000.00 € | I6: ΑΡΧ/ΚΟΣ ΧΩΡΟΣ ΖΩΝΗΣ ΑΛΕΞΑΝΔΡΟΥΠΟΛΗΣ
A7: 5 | B7: 265 | C7: Polygreen Culture and Art Initiative - Awareness Raising Αστική Μη Κερδοσκοπική Εταιρεία | D7: Κωνσταντίνος Βήτα: Ο Χώρος και η Μνήμη | E7: 6922 | G7: 30,000.00 € | I7: ΠΕΡΙΠΤΕΡΟ ΠΙΚΙΩΝΗ ΣΤΟΥΣ ΔΕΛΦΟΥΣ
A8: 6 | B8: 455 | C8: ΑΝΑΚΟΛΟΥΘΑ | D8: Model Collapse | E8: 52818 | F8: 15,000.00 € | I8: ΑΡΧΑΙΟΛΟΓΙΚΟ ΜΟΥΣΕΙΟ ΕΡΕΤΡΙΑΣ
A9: 7 | B9: 466 | C9: LOOX ΑΣΤΙΚΗ ΜΗ ΚΕΡΔΟΣΚΟΠΙΚΗ ΕΤΑΙΡΕΙΑ | D9: Πολιτιστικό Σχέδιο Παράδοσης και Καινοτομίας: Εικονογραφία 2.0, NextGenerationCulturalTradition | E9: 64641 | F9: 15,000.00 € | I9: ΙΕΡΑ ΜΟΝΗ ΤΟΠΛΟΥ (Σητεία)
A10: 8 | B10: 487 | C10: ΤΕΧΝΗ, ΓΚΡΑΦΙΤΙ ΣΤΗΝ ΠΟΛΗ | D10: Όταν ο Νεο-Κλασικισμός συναντά τον Μετα-κλασικισμό | E10: 66605 | F10: 15,000.00 € | I10: ΑΡΧΑΙΟΛΟΓΙΚΟ ΜΟΥΣΕΙΟ ΚΑΛΥΜΝΟΥ
F12: =SUM(F8:F11) -> 45,000.00 € | G12: =SUM(G3,G4,G5,G6,G7) -> 150,000.00 € | I12: =SUM(F12:H12) -> 195,000.00 €

Sheet χορός
A1: Α/Α | B1: ΕΤΑΙΡΕΙΑ ΑΜΚΕ | C1: ΤΙΤΛΟΣ | D1: Α.Μ. | E1: ΚΑΤΗΓΟΡΙΑ ΧΡΗΜΑΤΟΔΟΤΗΣΗΣ | H1: ΧΩΡΟΣ
E2: 15,000.00 € | F2: 30,000.00 € | G2: 60,000.00 €
A3: 1 | B3: ΟΜΑΔΑ ΣΥΓΧΡΟΝΟΥ ΧΟΡΟΥ ΠΡΟΣΧΗΜΑ – ΑΣΤΙΚΗ ΕΤΑΙΡΕΙΑ | C3: Hounds of madness | D3: 345 | F3: 30,000.00 € | H3: ΑΡΧΑΙΟΛΟΓΙΚΟ ΜΟΥΣΕΙΟ ΘΗΒΩΝ
A4: 2 | B4: «ΟΜΙΛΟΣ ΤΩΝ ΦΙΛΩΝ ΤΟΥ ΣΥΓΧΡΟΝΟΥ ΧΟΡΟΥ» (YELP DANCE Cο) | C4: Οικειοποιήσεις: Ανασκαφή της Κίνησης | D4: 742 | E4: 15,000.00 € | H4: ΑΡΧΑΙΟΛΟΓΙΚΟ ΜΟΥΣΕΙΟ ΝΕΜΕΑΣ
A5: 3 | B5: Ομάδα Παραστατικών Τεχνών Αθανασίας Κανελλοπούλου | C5: "SHATTERED GROUND" | D5: 3970 | E5: 15,000.00 € | H5: ΠΟΛΥΚΕΝΤΡΙΚΟ ΜΟΥΣΕΙΟ ΑΙΓΩΝ. ΣΥΝΝΕΝΟΗΣΗ ΜΕ ΤΗΝ ΕΦΑ ΓΙΑ ΤΟΝ ΑΚΡΙΒΕΣ ΧΩΡΟ
A6: 4 | B6: DAGIPOLI DANCE CO. | C6: "BACK, FRONT, BACK..." | D6: 4510 | F6: 30,000.00 € | H6: ΑΡΧΑΙΟΛΟΓΙΚΌ ΜΟΥΣΕΙΟ ΑΡΧΑΙΑΣ ΟΛΥΜΠΙΑΣ
A7: 5 | B7: ΣΙΝΚ ΑΠ ΠΡΟΝΤΑΞΙΟΝΣ - ΑΣΤΙΚΗ ΜΗ ΚΕΡΔΟΣΚΟΠΙΚΗ ΕΤΑΙΡΕΙΑ | C7: FRIEND WITH THE MOUNTAIN | ΦΙΛΟΣ ΜΕ ΤΟ ΒΟΥΝΟ | D7: 6448 | E7: 15,000.00 € | H7: ΑΡΧΑΙΟΛΟΓΙΚΟ ΜΟΥΣΕΙΟ ΙΩΑΝΝΙΝΩΝ
A8: 6 | B8: CYCLERE ΑΜΚΕ | C8: Κομμάτια Γης | D8: 19001 | F8: 30,000.00 € | H8: ΑΡΧΑΙΟΛΟΓΙΚΟ ΜΟΥΣΕΙΟ ΖΑΚΥΝΘΟΥ
A9: 7 | B9: ΟΜΑΔΑ ΧΟΡΟΥ ΒΑΡΒΑΡΑΣ ΜΠΑΡΔΑΚΑ ΑΣΤΙΚΗ ΜΗ ΚΕΡΔΟΣΚΟΠΙΚΗ ΕΤΑΙΡΙΑ | C9: Hero | D9: 66466 | E9: 15,000.00 € | H9: ΡΩΜΑΙΚΟ ΩΔΕΙΟ ΚΩ
A10: 8 | B10: ARS NOVA EXPERIMENTALIS ΕΤΑΙΡΙΑ ΤΕΧΝΗΣ ΚΑΙ ΠΟΛΙΤΙΣΜΟΥ ΑΜΚΕ | C10: Παραπατήματα | D10: 66755 | F10: 30,000.00 € | H10: Α' ΑΡΧΑΙΟ ΘΕΑΤΡΟ ΛΑΡΙΣΣΑΣ
E12: =SUM(E4,E5,E7,E9) -> 60,000.00 € | F12: =SUM(F3,F6,F8,F10) -> 120,000.00 € | H12: =SUM(E12:G12) -> 180,000.00 €

Sheet παρ.δρασ.παιδ.εφηβ.
A1: Α/Α | B1: ΕΤΑΙΡΕΙΑ ΑΜΚΕ | C1: ΤΙΤΛΟΣ | D1: Α.Μ. | E1: ΚΑΤΗΓΟΡΙΑ ΧΡΗΜΑΤΟΔΟΤΗΣΗΣ | H1: ΧΩΡΟΙ
E2: 15,000.00 € | F2: 30,000.00 € | G2: 60,000.00 €
A3: 1 | B3: ΑΣΤΙΚΗ ΜΗ ΚΕΡΔΟΣΚΟΠΙΚΗ ΕΤΑΙΡΕΙΑ - ΜΗ ΑΝΑΣΤΡΕΨΙΜΟΙ | C3: PANDΩRA_25 // Μύθος --> ΑΙ Clitch the Past | D3: 2058 | E3: 15,000.00 € | H3: ΝΑΟΣ ΑΠΟΛΛΩΝΑ ΜΗΤΡΟΠΟΛΗΣ ΚΑΡΔΙΤΣΑΣ
A4: 2 | B4: Elephas tiliensis | C4: Αληθινή ιστορία ή ταξίδι στο νησί της σελήνης | D4: 3406 | F4: 30,000.00 € | H4: ΑΡΧΑΙΟ ΘΕΑΤΡΟ ΔΗΜΗΤΡΙΑΔΑΣ
A5: 3 | B5: Apparat Athen | C5: Τα γυάλινα βουνά και οι κοκκαλένιοι κάμποι | D5: 8091 | G5: 60,000.00 € | H5: ΑΚΡΟΠΟΛΗ ΑΓΙΟΥ ΑΝΔΡΕΑ ΣΙΦΝΟΥ
A6: 4 | B6: CALD Productions | C6: Sliding Slalom / Στρογγύλη | D6: 45351 | F6: 30,000.00 € | H6: ΑΡΧΑΙΟΛΟΓΙΚΟΣ ΧΩΡΟΣ ΑΚΡΩΤΗΡΙΟΥ ΘΗΡΑΣ
A7: 5 | B7: Naif ΑΣΤΙΚΗ ΜΗ ΚΕΡΔΟΣΚΟΠΙΚΗ ΕΤΑΙΡΕΙΑ | C7: Φθινοπωρινά νιάτα | D7: 66572 | E7: 15,000.00 € | H7: ΟΘΩΜΑΝΙΚΟ ΤΕΜΕΝΟΣ ΟΣΜΑΝ ΣΑΑΧ (ΚΟΥΡΣΟΥΜ ΤΖΑΜΙ) ΤΡΙΚΑΛΑ
A8: 6 | B8: Harmonica αστική μη κερδοσκοπική εταιρία | C8: Η ΔΙΑΘΗΚΗ | D8: 68173 | E8: 15,000.00 € | H8: ΚΑΣΤΡΟ ΗΓΟΥΜΕΝΙΤΣΑΣ
A9: 7 | B9: ΘΕΑΤΡΙΚΗ ΟΜΑΔΑ MODODENTRO ΑΣΤΙΚΗ ΜΗ ΚΕΡΔΟΣΚΟΠΙΚΗ ΕΤΑΙΡΕΙΑ | C9: Το στέμμα του πρίγκιπα και άλλες ιστορίες | D9: 68199 | E9: 15,000.00 € | H9: ΚΑΣΤΡΟ ΛΑΜΙΑΣ
E11: =SUM(E3,E7,E8,E9) -> 60,000.00 € | F11: =SUM(F4:F10) -> 60,000.00 € | G11: =SUM(G5:G10) -> 60,000.00 € | H11: =SUM(E11:G11) -> 180,000.00 €

Sheet μουσικό θέατρο
A1: Α/Α | B1: ΕΤΑΙΡΕΙΑ ΑΜΚΕ | C1: ΤΙΤΛΟΣ | D1: Α.Μ. | E1: ΚΑΤΗΓΟΡΙΑ ΧΡΗΜΑΤΟΔΟΤΗΣΗΣ | H1: ΧΩΡΟΣ
E2: 15,000.00 € | F2: 30,000.00 € | G2: 60,000.00 €
A3: 1 | B3: ΤΕΧΝΗ-ΨΥΧΗ | C3: Έργηχος ή Η τελευταία κλωστή | D3: 20658 | F3: 30,000.00 € | H3: ΑΡΧΑΙΟΛΟΓΙΚΟΣ ΧΩΡΟΣ ΑΒΔΗΡΩΝ
A4: 2 | B4: Performart Αστική Μη Κερδοσκοπική Εταιρεία | C4: Η Διάσταση της Ιφιγένειας | D4: 67443 | E4: 15,000.00 € | H4: ΖΙΝΖΙΡΛΙ ΤΖΑΜΙ ΣΕΡΡΕΣ
E6: =SUM(E4:E5) -> 15,000.00 € | F6: =SUM(F3) -> 30,000.00 € | H6: =SUM(E6:G6) -> 45,000.00 €

Sheet Φύλλο5
